Cogmind - Beta 16.1 @@@ ROGUE MODE // 2026.03.03 @ 19:17:59 Player: Zable Result: Self-destructed Performance ------------- Evolutions (1) 500 Regions Visited (2) 400 Robots Destroyed (10) 50 Value Destroyed (344) 344 Prototype IDs (0) 0 Alien Tech Used (0) 0 Bonus (0) 0 TOTAL SCORE: 1294 Bonus ------- None Cogmind --------- Core Integrity 309/400 Matter 288/300 Energy 36/100 System Corruption 0% Temperature Cool (0) Movement Core (200) Ox3 Location -9/Materials Parts ------- > --- POWER (1) -------- (None) > --- PROPULSION (2) --- (None) > --- UTILITY (4) ------ Improved Heat Sink Cooling System Small Storage Unit Seismic Detector > --- WEAPON (2) ------- Light Assault Rifle > --- INVENTORY (8) ---- Ion Engine Light Treads Light Treads Wheel Wheel Small Laser Small Laser Peak State ------------ > --- POWER ------------ Light Ion Engine > --- PROPULSION ------- Aluminum Leg Aluminum Leg > --- UTILITY ---------- Improved Heat Sink Cooling System Small Storage Unit Seismic Detector > --- WEAPON ----------- Particle Gun Spread Laser > --- INVENTORY -------- Ion Engine Light Treads Light Treads Wheel Wheel Small Laser Small Laser Light Assault Rifle [Rating: 14] Favorites ----------- Power Light Ion Engine Engine Light Ion Engine Propulsion Aluminum Leg Leg Aluminum Leg Utility Small Storage Unit Device Seismic Detector Storage Small Storage Unit Weapon Particle Gun Energy Gun Particle Gun Ballistic Gun Light Assault Rifle Build | -11 -10 -9 ------- Run | Yrd Mat Mat Slots Evolved 2 | . . 2 Power . | . . . Propulsion . | . . . Utility 2 | . . 2 Weapon . | . . . Parts Attached 8 | . 2 6 Power . | . . . Engine . | . . . Core . | . . . Reactor . | . . . Propulsion 1 | . . 1 Treads . | . . . Leg 1 | . . 1 Wheel . | . . . Hover . | . . . Flight . | . . . Utility 4 | . 1 3 Device 4 | . 1 3 Storage . | . . . Processor . | . . . Hackware . | . . . Protection . | . . . Artifact . | . . . Weapon 3 | . 1 2 Energy Gun 2 | . 1 1 Energy Cannon . | . . . Ballistic Gun 1 | . . 1 Ballistic Cannon . | . . . Launcher . | . . . Special Weapon . | . . . Impact Weapon . | . . . Slashing Weapon . | . . . Piercing Weapon . | . . . Special Melee Weapon . | . . . Unidentified Prototypes . | . . . Parts Lost 6 | . . 6 Power 1 | . . 1 Propulsion 3 | . . 3 Utility . | . . . Weapon 2 | . . 2 Highest Loss Streak 5 | . . 5 To Critical Strikes . | . . . Average Backups 7 | 6 6 7 Power 1 | 1 1 1 Propulsion 4 | 4 4 4 Utility . | . . . Weapon 2 | 1 1 2 Tool/Special . | . . . Unused Backups 15 | . 5 10 Power 3 | . 1 2 Propulsion 8 | . 2 6 Utility 1 | . 1 . Weapon 3 | . 1 2 Tool/Special . | . . . Average Slot Usage (%) 89 | . 85 91 Engine 11 | . 14 10 Leg 23 | . 28 21 Device 16 | . . 26 Storage 12 | . 14 11 Energy Gun 15 | . 14 17 Ballistic Gun 8 | . 14 4 Peak Build Rating 14 | 6 8 14 Average Rating 9 | 6 6 11 On Entrance 6 | 6 6 8 Avg Prop Armor Cover (%) . | . . . Naked Turns . | . . . Heaviest Build 18 | 10 13 18 Greatest Support 20 | 20 20 20 Greatest Overweight (x) 1 | . . 1 Average Overweight (x) . | . . . Largest Inventory Capacity 8 | 8 8 8 Average Capacity 8 | 8 8 8 Most Carried 8 | 6 7 8 Average Carried 7 | 6 6 7 Final Capacity 8 | 8 8 8 Final Carried 7 | 6 7 7 Class Distribution -------------------- 100% | Mutant Dominant Class ---------------- Mutant | -10/Materials Mutant | -9/Materials Resources | -11 -10 -9 ----------- Run | Yrd Mat Mat Matter Collected 275 | 198 22 55 Remotely . | . . . Salvage Created 330 | 12 99 219 Parts 23 | 3 5 15 Haulers Intercepted . | . . . Recyclers Shooed . | . . . Parts Field Recycled . | . . . Retrieved Matter . | . . . Parts Self-Destructed . | . . . Prevented . | . . . Parts Restored . | . . . Kills | -11 -10 -9 ------- Run | Yrd Mat Mat Combat Hostiles Destroyed 9 | . 2 7 Guns 9 | . 2 7 Classes Destroyed 4 | 1 1 2 Tunneler 1 | 1 . . Swarmer 2 | . . 2 Grunt 4 | . 2 2 Sentry 3 | . . 3 Best Kill Streak 3 | 1 2 3 Combat Bots Only 3 | . 2 3 Max Kills in Single Turn 1 | 1 1 1 Gunslinging . | . . . Exploded . | . . . Melee . | . . . Uniques/NPCs Destroyed . | . . . Combat | -11 -10 -9 -------- Run | Yrd Mat Mat Hostile Shots Fired 68 | . 8 60 Missed 17 | . 3 14 Hits 51 | . 5 46 Projectile 51 | . 5 46 Critical Strikes 3 | . 1 2 Damage Taken 681 | . 63 618 Core 91 | . . 91 Absorbed by Shields . | . . . Core Remaining (%) 100 | 100 100 . Volleys Fired 38 | 2 10 26 Largest 2 | 2 2 2 Hottest 130 | 60 85 130 Shots Fired 74 | 4 19 51 Gun 74 | 4 19 51 Cannon . | . . . Launcher . | . . . Special . | . . . Kinetic 22 | 2 10 10 Thermal 52 | 2 9 41 Explosive . | . . . Electromagnetic . | . . . Robot Hit Streak 8 | 2 4 8 Robot Miss Streak 5 | 1 4 5 Penetration Max . | . . . Secondary Targets 2 | . . 2 Max Gunslinging Chain 1 | . . 1 Shots Hit Robots 43 | 2 11 30 Core Hits 33 | 2 6 25 Critical Kills . | . . . Critical Parts Destroyed 1 | . . 1 Critical Strikes 1 | . . 1 Destroy 1 | . . 1 Melee Attacks . | . . . Impact . | . . . Slashing . | . . . Piercing . | . . . Sneak Attacks . | . . . Combat Hostiles . | . . . Follow-up Attacks . | . . . Damage Inflicted 577 | 19 115 443 Guns 577 | 19 115 443 Cannons . | . . . Explosions . | . . . Melee . | . . . Ramming . | . . . Kinetic 94 | 9 43 42 Thermal 483 | 10 72 401 Explosive . | . . . Electromagnetic . | . . . Impact . | . . . Slashing . | . . . Piercing . | . . . Highest Corruption . | . . . Average Corruption . | . . . Corruption Purged . | . . . Corruption Blocked . | . . . Overload Shots . | . . . Overflow Damage . | . . . Projectiles . | . . . Explosions . | . . . Melee . | . . . Knockbacks . | . . . Impact . | . . . Kinetic . | . . . Secondary . | . . . Self-Inflicted Damage 54 | . . 54 Shots 1 | . . 1 Rammed . | . . . Targets Rammed . | . . . Kicked . | . . . Crushed . | . . . Highest Temperature 100 | 20 100 91 Average Temperature 37 | 15 46 28 Received Heat Transfer 237 | . 60 177 Siege Activations . | . . . Martial Activations . | . . . Shielding Activations . | . . . Robots Disrupted . | . . . Combat Hostiles . | . . . Robots Corrupted . | . . . Combat Hostiles . | . . . Parts Fried . | . . . Impact Corruptions . | . . . Robots Melted . | . . . Combat Hostiles . | . . . Parts Melted . | . . . Heat Transferred 896 | 25 162 709 Parts Sabotaged . | . . . Parts Stolen . | . . . Parts Stripped . | . . . Power Chain Reactions . | . . . Alert | -11 -10 -9 ------- Run | Yrd Mat Mat Maximum Alert Level . | . . . Low Security (%) 100 | 100 100 100 Level 1 . | . . . Level 2 . | . . . Level 3 . | . . . Level 4 . | . . . Level 5 . | . . . High Security . | . . . Max Security . | . . . Peak Influence 149 | 5 60 149 Initial 8 | . . 8 Average 31 | 2 27 36 Influence Increases 334 | 5 80 249 Destroy 0b10 Robot/C 180 | . 40 140 Destroy 0b10 Robot/NC 5 | 5 . . Destroy Leader 60 | . 10 50 Disable Machine 30 | . . 30 Destroy Structure 29 | . . 29 Lose Combat Pursuer 30 | . 30 . Influence Decreases 225 | 5 60 160 Entered New Map 12 | . . 12 Time Decay 153 | 5 60 88 Lost Part 60 | . . 60 Squads Dispatched 1 | . 1 . Investigation . | . . . Extermination . | . . . Reinforcement 1 | . 1 . Assault . | . . . Garrison . | . . . Intercept . | . . . Searches Triggered . | . . . Construction Impeded . | . . . Haulers Reinforced . | . . . Active Scanning Responses . | . . . Cargo Convoy Interrupts . | . . . Stealth | -11 -10 -9 --------- Run | Yrd Mat Mat Distress Signals . | . . . Communications Jammed . | . . . Distress Signals . | . . . Times Spotted 16 | . 6 10 Peak Tracking Total 4 | . 3 4 Tactical Retreats 1 | . 1 . Traps | -11 -10 -9 ------- Run | Yrd Mat Mat Traps Triggered . | . . . Indirectly . | . . . Trap Hack Attempts . | . . . Triggered . | . . . Disarmed . | . . . Reprogrammed . | . . . Reused . | . . . Traps Extracted . | . . . Installed . | . . . Triggered . | . . . Machines | -11 -10 -9 ---------- Run | Yrd Mat Mat Machines Disabled 2 | . . 2 Max in Single Turn 2 | . . 2 Machines Repaired . | . . . Machines Dismantled . | . . . Machines Sabotaged . | . . . Overloaded Fab Kills . | . . . Hacking | -11 -10 -9 --------- Run | Yrd Mat Mat Machines Accessed 1 | . . 1 Terminals 1 | . . 1 Fabricators . | . . . Repair Stations . | . . . Recycling Units . | . . . Scanalyzers . | . . . Garrison Access . | . . . Total Hacks 3 | . . 3 Successful 3 | . . 3 Failed . | . . . Catastrophic . | . . . Database Lockouts . | . . . Manual 3 | . . 3 Terminals 3 | . . 3 Fabricators . | . . . Repair Stations . | . . . Recycling Units . | . . . Scanalyzers . | . . . Garrison Access . | . . . Terminal Hacks 2 | . . 2 Robot Analysis 2 | . . 2 Fabricator Hacks . | . . . Repair Station Hacks . | . . . Recycling Unit Hacks . | . . . Scanalyzer . | . . . Garrison Access Hacks . | . . . Unauthorized Hacks 1 | . . 1 Terminals 1 | . . 1 Botnet 1 | . . 1 Fabricators . | . . . Repair Stations . | . . . Recycling Units . | . . . Scanalyzers . | . . . Garrison Access . | . . . Data Cores Recovered . | . . . Used . | . . . Hacking Detections 1 | . . 1 Full Trace Events . | . . . Feedback Events . | . . . Feedback Blocked . | . . . Robot Schematics Acquired . | . . . Robots Built . | . . . Authchips . | . . . Time . | . . . Total Robot Build Rating . | . . . Part Schematics Acquired . | . . . Parts Built . | . . . Authchips . | . . . Time . | . . . Total Part Build Rating . | . . . Part Studies Acquired . | . . . Parts Repaired . | . . . Time . | . . . Parts Recycled . | . . . Recycled Matter . | . . . Retrieved Matter . | . . . Retrieved Components . | . . . Parts Scanalyzed . | . . . Part Schematics Acquired . | . . . Parts Damaged . | . . . Bothacking | -11 -10 -9 ------------ Run | Yrd Mat Mat Used RIF Installer . | . . . Robots Hacked . | . . . Non-combat . | . . . Combat . | . . . Robot Hacks Applied . | . . . Relay Couplers Released . | . . . Fabnet Peak Effective % . | . . . Robots Rewired . | . . . Allies Hacked . | . . . Hacks Repelled . | . . . Allies | -11 -10 -9 -------- Run | Yrd Mat Mat Total Allies . | . . . Largest Group . | . . . Highest-Rated Group . | . . . Highest-Rated Ally . | . . . Total Orders . | . . . Ally Attacks . | . . . Total Damage . | . . . Kills . | . . . Allies Corrupted . | . . . Allies Melted . | . . . Intel | -11 -10 -9 ------- Run | Yrd Mat Mat Active Infowar (turns) 260 | . 8 252 Seismic 260 | . 8 252 Robot Analysis Total 2 | . . 2 Derelict Logs Recovered . | . . . Drone Launches . | . . . Drone Recoveries . | . . . Exploration | -11 -10 -9 ------------- Run | Yrd Mat Mat Turns Passed 443 | 23 168 252 Spaces Moved 211 | 15 93 103 Core . | . . . Treads . | . . . Legs 211 | 15 93 103 Wheels . | . . . Hover . | . . . Flight . | . . . Fastest Speed 120 | 120 120 120 Average Speed 121 | 120 120 122 Slowest Speed 190 | 120 120 190 Overloaded Moves . | . . . Propulsion Burnouts . | . . . Robots Hopped . | . . . Potential Cave-ins . | . . . Cave-ins Triggered . | . . . Exploration Rate (%) 14 | 3 26 13 Regions Visited 2 Branch Regions . Pre-discovered Areas . | . . . Known Exits Taken . | . . . Unknown Exits Taken 2 | 1 1 . Scrap Searched . | . . . Spaces Dug . | . . . Terrain Destroyed 46 | . . 46 Melee . | . . . Projectile . | . . . AOE 46 | . . 46 Terrain Rammed . | . . . Walls Destroyed . | . . . Machines Disabled . | . . . Actions | -11 -10 -9 --------- Run | Yrd Mat Mat Total 324 | 16 131 177 Wait 67 | . 27 40 Move 209 | 14 92 103 Hop . | . . . Pick Up . | . . . Fast Attach 4 | . 1 3 Attach 1 | . . 1 Detach . | . . . Swap 4 | . 1 3 Drop 1 | . . 1 Fire 38 | 2 10 26 Melee . | . . . Ram . | . . . Kick . | . . . Crush . | . . . Escape Stasis . | . . . Rewire . | . . . Trap . | . . . Miscellaneous . | . . . Route ------- -11/Scrapyard -10/Materials -9/Materials History --------- Turn | Location | Event 1 | -11/Scrapyard | Discovered new exit (range 2) 24 | -11/Scrapyard | Entered Materials 164 | -10/Materials | Discovered new exit (range 12) 192 | -10/Materials | Entered another Materials area 192 | -9/Materials | Evolved 2 slots: Utility x2 305 | -9/Materials | Build established: Mutant 444 | -9/Materials | Self-destructed Last Messages --------------- 00391_ R-06 Scavenger collects Heat Sink. 00393_ G-47 Trooper destroyed. 00396_ R-06 Scavenger collects Lgt. Nuclear Core. 00396_ G-34 Mercenary destroyed. 00399_ R-06 Scavenger collects Sml. Laser. 00402_ R-06 Scavenger collects Ion Engine. 00403_ Dropped Heat Sink. 00409_ Acquired Aluminum Leg. 00418_ S-10 Pest destroyed. 00418_ Switching to secondary target: S-10 Pest. 00418_ Spread Laser destroyed. 00428_ S-10 Pest suffers critical hit (Destroy). 00428_ Destroyed Flight Unit. 00431_ S-10 Pest destroyed. 00431_ Switching to secondary target: Y-45 Defender. 00435_ Critical hit (Burn: +37). 00438_ Lgt. Ion Engine destroyed. 00441_ Aluminum Leg destroyed. 00441_ Particle Gun destroyed. 00441_ Aluminum Leg destroyed. Map ----- +----------------------------------------------------+ | ?????????????????????????????????????????????????? | | ?????????????????????????????????????????????????? | | ?????????????????????????????????????????????????? | | ?????????????????????????????????????????????????? | | ?????????????????????????????????????????????????? | | ???????????????????????????? ??????????????????? | | ???????????????????????????? ????????????????? | | ???????????????????????????? #???????????????? | | ???????????????????????????? #???????????????? | | ???????????????????????????? #???????????????? | | ???????????????????????????# #???????????????? | | ??????????????????????????? #???????????????? | | ?########?????????????????? #???????????????? | | ?# #?????????????????? #???????????????? | | ?# """ #??????????????????# #???????????????? | | ?# """ #??????????????????# #???????????????? | | ?# """ #?????????????????## ##??????????????? | | ?# """ #??###+###????????# #??????????????? | | ?# !#??# ########## #??????????????? | | ?####+###### #??????????????? | | ????# ! =% #??????????????? | | ????# ###### %! #??????????????? | | ????# #????# ##;;;;;+## #??????????????? | | ????# #????######;; # #??????????????? | | ????# #?????????# ; #########??????????????? | | ???## ##????????# ! @;#?????????????????????? | | ???# ########## [ =%####### """???????????? | | ???# ## # =[ Ys % + """???????????? | | ???# ## """ # ;####### """???????????? | | ##### ### "T" # ;#?????????????????????? | | # #?# # ##?????????????????????? | | # ### # #??????????????????????? | | + + # ; #??????????????????????? | | "" # ####+### ; #??????????????????????? | | "Y # ## ## ;;; ;;###??????????????????????? | | ""?# #####;;##?????????????????????????? | | ?# ^ " #???###???????????????????????????? | | ##??# #?????????????????????????????????? | | ????###+## #?????????????????????????????????? | | ?????????### ###?????????????????????????????????? | | ???????????# #???????????????????????????????????? | | ???????????# #???????????????????????????????????? | | ???????????# #???????????????????????????????????? | | ???????????# #???????????????????????????????????? | | ?????####??# #???????????????????????????????????? | | ????? ?# #???????????????????????????????????? | | ?????"""""?# #???????????????????????????????????? | | ???? """"" # ###?????????????????????????????????? | | ??# """"" # #?????????????????????????????????? | | ??# + #?????????????????????????????????? | +----------------------------------------------------+ Best States ------------- Heat Dissipation 64 Energy Generation 10 Energy Capacity 125 Matter Stores 300 Matter Capacity 300 Sight Range 16 Terrain Scan Density 10 Evasion (%) 55 Item Schematics ----------------- None Robot Schematics ------------------ None Fabricated ------------ Nothing Repaired ---------- Nothing Studied --------- None Alien Tech Used ----------------- None Achievements -------------- None Challenges ------------ None Game ------ Seed ProtonMetafieldTearclaws Manual? 0 Play Time 00:03:38 Cumulative 44.1 hours Start 2026.03.01 @ 21:50:48 End 2026.03.03 @ 19:17:59 Sessions 3 Manual Loads 0 Difficulty Rogue Special Mode None Game No. 60 Rogue 35 Adventurer 25 Explorer 0 Win Type - Total 0 Types 0/0/0/0/0/0/0/0/0/0 Lore% 26 Gallery% 34 Achievement% 28 Wizard Run 0 Options --------- Layout 0 ASCII 0 Keyboard 1 Movement Numpad Keybinds 0 Fullscreen 1 Font 24/Smallcaps Map View 183x50 Zoom Use 0% Tactical HUD 1 Map Filters NONE Filters NONE Steam 1 RUN: d17a42d6-fc38-4eff-b41f-b18ce9b79cd3